[Event "*** Titled Tuesday Blitz"]
[Site "Chess.com"]
[Date "2020.04.21"]
[Round "6"]
[White "Azatnew"]
[Black "aNaartjieZA"]
[Result "1-0"]
[WhiteElo "2780"]
[BlackElo "2598"]
[TimeControl "180+1"]
[EndTime "11:09:16 PDT"]
[Termination "Azatnew won by resignation"]

1. Nf3 {[%clk 0:02:57.7]} 1... Nf6 {[%clk 0:02:59.7]} 2. g3 {[%clk 0:02:57.7]}
2... g6 {[%clk 0:03:00.1]} 3. Bg2 {[%clk 0:02:58.1]} 3... Bg7 {[%clk 0:03:00.8]}
4. O-O {[%clk 0:02:59]} 4... O-O {[%clk 0:03:01.4]} 5. d4 {[%clk 0:02:59.4]}
5... d6 {[%clk 0:03:02]} 6. c4 {[%clk 0:03:00]} 6... c6 {[%clk 0:03:02.4]} 7.
Nc3 {[%clk 0:03:00.6]} 7... Qa5 {[%clk 0:03:03]} 8. e4 {[%clk 0:02:59.7]} 8...
Bg4 {[%clk 0:03:00.8]} 9. h3 {[%clk 0:02:58.2]} 9... Bxf3 {[%clk 0:03:00.9]} 10.
Qxf3 {[%clk 0:02:57.7]} 10... e5 {[%clk 0:03:00.6]} 11. Be3 {[%clk 0:02:50.8]}
11... Qb4 {[%clk 0:02:59.2]} 12. Qe2 {[%clk 0:02:49.7]} 12... Nfd7 {[%clk
0:02:57.2]} 13. Rfd1 {[%clk 0:02:35.6]} 13... exd4 {[%clk 0:02:53.8]} 14. Bxd4
{[%clk 0:02:35.9]} 14... Ne5 {[%clk 0:02:53.7]} 15. b3 {[%clk 0:02:29.9]} 15...
c5 {[%clk 0:02:42.1]} 16. Nd5 {[%clk 0:02:27.5]} 16... Qa5 {[%clk 0:02:41.2]}
17. Bc3 {[%clk 0:02:23.3]} 17... Qd8 {[%clk 0:02:40.8]} 18. f4 {[%clk 0:02:22]}
18... Nec6 {[%clk 0:02:40.8]} 19. Bxg7 {[%clk 0:02:21.9]} 19... Kxg7 {[%clk
0:02:40.8]} 20. Qb2+ {[%clk 0:02:19.9]} 20... f6 {[%clk 0:02:39.3]} 21. Rd2
{[%clk 0:02:10]} 21... Nd4 {[%clk 0:02:39.4]} 22. Rxd4 {[%clk 0:02:10]} 22...
cxd4 {[%clk 0:02:40.2]} 23. Qxd4 {[%clk 0:02:10.9]} 23... Nc6 {[%clk 0:02:40.4]}
24. Qd2 {[%clk 0:02:11.3]} 24... Qd7 {[%clk 0:02:34.5]} 25. Rd1 {[%clk
0:02:11.4]} 25... Rae8 {[%clk 0:02:33.9]} 26. Nc3 {[%clk 0:02:11.1]} 26... Rd8
{[%clk 0:02:33]} 27. Nb5 {[%clk 0:02:10.7]} 27... Qe6 {[%clk 0:02:26.6]} 28. Nc7
{[%clk 0:02:04.9]} 28... Qf7 {[%clk 0:02:25.2]} 29. Nb5 {[%clk 0:02:04.3]} 29...
Qe6 {[%clk 0:02:21.2]} 30. Kh2 {[%clk 0:01:37]} 30... Rf7 {[%clk 0:02:17.7]} 31.
h4 {[%clk 0:01:36.4]} 31... a6 {[%clk 0:02:14.3]} 32. Nc3 {[%clk 0:01:35.6]}
32... Qe8 {[%clk 0:02:00.9]} 33. Nd5 {[%clk 0:01:32.3]} 33... Ne7 {[%clk
0:01:56.9]} 34. Ne3 {[%clk 0:01:27.3]} 34... Nc6 {[%clk 0:01:52.1]} 35. Qe2
{[%clk 0:01:11.4]} 35... Kg8 {[%clk 0:01:45.7]} 36. Ng4 {[%clk 0:01:06.2]} 36...
Kg7 {[%clk 0:01:43.3]} 37. Qb2 {[%clk 0:01:06.4]} 37... h5 {[%clk 0:01:42.3]}
38. Ne3 {[%clk 0:01:05.2]} 38... Kg8 {[%clk 0:01:42.4]} 39. Nd5 {[%clk
0:01:05.2]} 39... Qf8 {[%clk 0:01:39.9]} 40. Rf1 {[%clk 0:01:03.4]} 40... Re8
{[%clk 0:01:34.4]} 41. Qc3 {[%clk 0:01:03.4]} 41... Qg7 {[%clk 0:01:32.7]} 42.
Rd1 {[%clk 0:01:00.2]} 42... f5 {[%clk 0:01:32.1]} 43. exf5 {[%clk 0:00:54.3]}
43... gxf5 {[%clk 0:01:30.5]} 44. Qd3 {[%clk 0:00:49.3]} 44... Qg6 {[%clk
0:01:14.1]} 45. Ne3 {[%clk 0:00:46.7]} 45... Nb4 {[%clk 0:00:51.9]} 46. Qd2
{[%clk 0:00:46]} 46... Nc6 {[%clk 0:00:46.9]} 47. Bd5 {[%clk 0:00:45.7]} 47...
Rd8 {[%clk 0:00:36.3]} 48. Bxf7+ {[%clk 0:00:45.3]} 48... Kxf7 {[%clk
0:00:36.6]} 49. Re1 {[%clk 0:00:43.5]} 49... Ne7 {[%clk 0:00:36.1]} 50. Nd5
{[%clk 0:00:42.8]} 50... Nc6 {[%clk 0:00:35.6]} 51. Qe3 {[%clk 0:00:38.6]} 51...
Rg8 {[%clk 0:00:28.9]} 52. b4 {[%clk 0:00:38.6]} 52... Kg7 {[%clk 0:00:24.9]}
53. b5 {[%clk 0:00:36.4]} 53... axb5 {[%clk 0:00:23.4]} 54. cxb5 {[%clk
0:00:37.3]} 54... Nd8 {[%clk 0:00:23.5]} 55. Ne7 {[%clk 0:00:37.4]} 55... Qf6
{[%clk 0:00:20.3]} 56. Nxg8 {[%clk 0:00:37.3]} 56... Kxg8 {[%clk 0:00:20.7]} 57.
Qe7 {[%clk 0:00:36.3]} 57... Qxe7 {[%clk 0:00:18.8]} 58. Rxe7 {[%clk 0:00:37.2]}
1-0

[Event "*** Titled Tuesday Blitz"]
[Site "Chess.com"]
[Date "2020.04.21"]
[Round "6"]
[White "swimmerchess"]
[Black "viditchess"]
[Result "0-1"]
[WhiteElo "2843"]
[BlackElo "2974"]
[TimeControl "180+1"]
[EndTime "11:09:17 PDT"]
[Termination "viditchess won on time"]

1. e4 {[%clk 0:03:00.9]} 1... c5 {[%clk 0:02:59.8]} 2. Nf3 {[%clk 0:03:01.2]}
2... d6 {[%clk 0:03:00.1]} 3. d4 {[%clk 0:03:01.8]} 3... cxd4 {[%clk 0:03:01]}
4. Nxd4 {[%clk 0:03:02.7]} 4... Nf6 {[%clk 0:03:01.3]} 5. Nc3 {[%clk 0:03:03.4]}
5... Nc6 {[%clk 0:03:01.9]} 6. Bg5 {[%clk 0:03:03.2]} 6... e6 {[%clk 0:03:02.1]}
7. Qd2 {[%clk 0:03:03.8]} 7... a6 {[%clk 0:03:02.1]} 8. O-O-O {[%clk 0:03:03.8]}
8... Bd7 {[%clk 0:03:02.6]} 9. f3 {[%clk 0:03:04.3]} 9... Be7 {[%clk 0:03:01]}
10. Be3 {[%clk 0:03:04.3]} 10... b5 {[%clk 0:02:53.8]} 11. Nxc6 {[%clk
0:03:02.4]} 11... Bxc6 {[%clk 0:02:54]} 12. Ne2 {[%clk 0:03:03.3]} 12... O-O
{[%clk 0:02:47.9]} 13. Nd4 {[%clk 0:03:03.1]} 13... Bb7 {[%clk 0:02:44.3]} 14.
Kb1 {[%clk 0:03:02.2]} 14... Rc8 {[%clk 0:02:42.9]} 15. Bd3 {[%clk 0:02:58.6]}
15... Nd7 {[%clk 0:02:42.4]} 16. h4 {[%clk 0:02:57.1]} 16... Ne5 {[%clk
0:02:36.4]} 17. g4 {[%clk 0:02:49.8]} 17... d5 {[%clk 0:02:32.3]} 18. exd5
{[%clk 0:02:11.7]} 18... Bxd5 {[%clk 0:02:32.5]} 19. Qe2 {[%clk 0:02:04.7]}
19... Nxd3 {[%clk 0:02:21.6]} 20. Qxd3 {[%clk 0:01:48.2]} 20... Qa5 {[%clk
0:02:20.8]} 21. Nb3 {[%clk 0:01:40.3]} 21... Qc7 {[%clk 0:02:19.7]} 22. Bg5
{[%clk 0:01:07.9]} 22... Rfd8 {[%clk 0:02:19.1]} 23. Bxe7 {[%clk 0:01:05.4]}
23... Qxe7 {[%clk 0:02:20]} 24. Qe3 {[%clk 0:01:04.3]} 24... Rc4 {[%clk
0:02:01.7]} 25. Rd2 {[%clk 0:00:58.4]} 25... b4 {[%clk 0:01:33.2]} 26. Rhd1
{[%clk 0:00:56.6]} 26... Qxh4 {[%clk 0:01:29.9]} 27. Nc5 {[%clk 0:00:33.1]}
27... Rc8 {[%clk 0:01:23.1]} 28. Nxa6 {[%clk 0:00:21.1]} 28... h6 {[%clk
0:00:49.6]} 29. b3 {[%clk 0:00:18.5]} 29... Rc3 {[%clk 0:00:49.4]} 30. Rd3
{[%clk 0:00:19.1]} 30... Qe7 {[%clk 0:00:28.8]} 31. Qd4 {[%clk 0:00:10.4]} 31...
Bxf3 {[%clk 0:00:27.5]} 32. Nxb4 {[%clk 0:00:10.7]} 32... Bxd1 {[%clk
0:00:18.5]} 33. Rxc3 {[%clk 0:00:09.9]} 33... Rd8 {[%clk 0:00:15.3]} 34. Qe4
{[%clk 0:00:08.1]} 34... Qg5 {[%clk 0:00:10.3]} 35. Nc6 {[%clk 0:00:05.2]} 35...
Rd5 {[%clk 0:00:09.9]} 36. Nb4 {[%clk 0:00:02.4]} 36... Rd8 {[%clk 0:00:10.1]}
37. Nc6 {[%clk 0:00:02.5]} 37... Rd5 {[%clk 0:00:05]} 38. Nb4 {[%clk 0:00:02.5]}
38... Rc5 {[%clk 0:00:04.5]} 39. Rxc5 {[%clk 0:00:01.8]} 39... Qxc5 {[%clk
0:00:05.4]} 40. Qa8+ {[%clk 0:00:02.1]} 40... Kh7 {[%clk 0:00:05.9]} 41. Qe4+
{[%clk 0:00:03]} 41... f5 {[%clk 0:00:05.8]} 42. gxf5 {[%clk 0:00:02.6]} 42...
exf5 {[%clk 0:00:06.2]} 0-1

[Event "*** Titled Tuesday Blitz"]
[Site "Chess.com"]
[Date "2020.04.21"]
[Round "6"]
[White "WelshTiger"]
[Black "Joshukid"]
[Result "1-0"]
[WhiteElo "2395"]
[BlackElo "2558"]
[TimeControl "180+1"]
[EndTime "11:09:17 PDT"]
[Termination "WelshTiger won by resignation"]

1. e4 {[%clk 0:02:59.5]} 1... c6 {[%clk 0:02:57.6]} 2. d4 {[%clk 0:02:59.1]}
2... d5 {[%clk 0:02:58.5]} 3. Nd2 {[%clk 0:02:59.6]} 3... dxe4 {[%clk
0:02:53.5]} 4. Nxe4 {[%clk 0:02:59.7]} 4... Nf6 {[%clk 0:02:54.4]} 5. Nxf6+
{[%clk 0:02:59.4]} 5... exf6 {[%clk 0:02:55.2]} 6. c3 {[%clk 0:02:56.9]} 6...
Bd6 {[%clk 0:02:55.6]} 7. Bd3 {[%clk 0:02:56.9]} 7... O-O {[%clk 0:02:56.1]} 8.
Ne2 {[%clk 0:02:57]} 8... Re8 {[%clk 0:02:55.2]} 9. Qc2 {[%clk 0:02:57.1]} 9...
h5 {[%clk 0:02:54.6]} 10. O-O {[%clk 0:02:54.6]} 10... h4 {[%clk 0:02:55.1]} 11.
h3 {[%clk 0:02:54.9]} 11... Nd7 {[%clk 0:02:54.4]} 12. Be3 {[%clk 0:02:42.7]}
12... Nf8 {[%clk 0:02:54]} 13. Rfe1 {[%clk 0:02:39.2]} 13... Qc7 {[%clk
0:02:53]} 14. c4 {[%clk 0:02:35.5]} 14... b6 {[%clk 0:02:44.4]} 15. a3 {[%clk
0:02:34.2]} 15... Be6 {[%clk 0:02:36.8]} 16. Rad1 {[%clk 0:02:32.5]} 16... Rad8
{[%clk 0:02:36.5]} 17. b4 {[%clk 0:02:20.4]} 17... Qc8 {[%clk 0:02:36.2]} 18.
Nf4 {[%clk 0:02:16.1]} 18... Bd7 {[%clk 0:02:24.7]} 19. c5 {[%clk 0:02:00.4]}
19... Bb8 {[%clk 0:02:12.3]} 20. cxb6 {[%clk 0:01:49.6]} 20... axb6 {[%clk
0:02:11.6]} 21. d5 {[%clk 0:01:48.1]} 21... Qc7 {[%clk 0:02:00.6]} 22. dxc6
{[%clk 0:01:38.8]} 22... Bc8 {[%clk 0:01:59.8]} 23. g3 {[%clk 0:00:51.8]} 23...
hxg3 {[%clk 0:01:42.9]} 24. fxg3 {[%clk 0:00:51.9]} 24... Bxh3 {[%clk
0:01:15.5]} 25. Qf2 {[%clk 0:00:47.1]} 25... Bg4 {[%clk 0:01:12.3]} 26. Bxb6
{[%clk 0:00:46.1]} 26... Qc8 {[%clk 0:00:51.9]} 27. Bxd8 {[%clk 0:00:45.7]}
27... Rxd8 {[%clk 0:00:48.2]} 28. Be2 {[%clk 0:00:37.6]} 28... Rxd1 {[%clk
0:00:34.6]} 29. Rxd1 {[%clk 0:00:36.7]} 29... Bf5 {[%clk 0:00:32.6]} 30. b5
{[%clk 0:00:33.9]} 30... Be5 {[%clk 0:00:22.7]} 31. Bf3 {[%clk 0:00:29.7]} 31...
g5 {[%clk 0:00:21.8]} 32. Ne2 {[%clk 0:00:27.8]} 32... g4 {[%clk 0:00:17.2]} 33.
Bg2 {[%clk 0:00:27.5]} 33... Bc2 {[%clk 0:00:16.8]} 34. Rc1 {[%clk 0:00:26.7]}
34... Bd3 {[%clk 0:00:17]} 35. b6 {[%clk 0:00:25.8]} 35... Bxe2 {[%clk
0:00:13.9]} 36. Qxe2 {[%clk 0:00:25.5]} 36... Bd4+ {[%clk 0:00:14.4]} 37. Kh2
{[%clk 0:00:25.5]} 37... Bxb6 {[%clk 0:00:14.5]} 38. c7 {[%clk 0:00:24]} 38...
Bxc7 {[%clk 0:00:14]} 39. Qc2 {[%clk 0:00:21]} 39... Ne6 {[%clk 0:00:12.6]} 40.
Bd5 {[%clk 0:00:21]} 40... Qb8 {[%clk 0:00:10]} 41. Bxe6 {[%clk 0:00:20.3]}
41... Bxg3+ {[%clk 0:00:10.2]} 42. Kg2 {[%clk 0:00:20.8]} 42... fxe6 {[%clk
0:00:09.4]} 43. Qg6+ {[%clk 0:00:21.4]} 43... Kf8 {[%clk 0:00:08.9]} 44. Qxf6+
{[%clk 0:00:21.8]} 44... Kg8 {[%clk 0:00:09.8]} 45. Qxe6+ {[%clk 0:00:22]} 45...
Kg7 {[%clk 0:00:10]} 46. Qe7+ {[%clk 0:00:22.2]} 46... Kg6 {[%clk 0:00:09.6]}
47. Rc6+ {[%clk 0:00:20.9]} 47... Kh5 {[%clk 0:00:08.6]} 48. Qh7+ {[%clk
0:00:16.5]} 48... Kg5 {[%clk 0:00:09.1]} 49. Qg6+ {[%clk 0:00:16.1]} 49... Kf4
{[%clk 0:00:08.5]} 50. Rc4+ {[%clk 0:00:16.2]} 50... Ke3 {[%clk 0:00:06.8]} 51.
Qe4+ {[%clk 0:00:16.4]} 51... Kd2 {[%clk 0:00:04.3]} 52. Rc2+ {[%clk 0:00:17]}
1-0

[Event "*** Titled Tuesday Blitz"]
[Site "Chess.com"]
[Date "2020.04.21"]
[Round "6"]
[White "DanielRensch"]
[Black "pedroholly22"]
[Result "1-0"]
[WhiteElo "2492"]
[BlackElo "2326"]
[TimeControl "180+1"]
[EndTime "11:09:17 PDT"]
[Termination "DanielRensch won by resignation"]

1. e4 {[%clk 0:03:00.9]} 1... c5 {[%clk 0:02:48]} 2. Nf3 {[%clk 0:02:53.7]} 2...
Nc6 {[%clk 0:02:46.5]} 3. d4 {[%clk 0:02:54.1]} 3... cxd4 {[%clk 0:02:46.5]} 4.
Nxd4 {[%clk 0:02:55]} 4... Nf6 {[%clk 0:02:46.2]} 5. Nc3 {[%clk 0:02:54.8]} 5...
e5 {[%clk 0:02:45.6]} 6. Ndb5 {[%clk 0:02:54.5]} 6... d6 {[%clk 0:02:43.6]} 7.
Bg5 {[%clk 0:02:53.2]} 7... a6 {[%clk 0:02:43]} 8. Na3 {[%clk 0:02:53.3]} 8...
b5 {[%clk 0:02:42.5]} 9. Bxf6 {[%clk 0:02:53.9]} 9... gxf6 {[%clk 0:02:42.1]}
10. Nd5 {[%clk 0:02:54.8]} 10... Bg7 {[%clk 0:02:41.6]} 11. Bd3 {[%clk
0:02:51.1]} 11... Ne7 {[%clk 0:02:41.1]} 12. O-O {[%clk 0:02:41]} 12... O-O
{[%clk 0:02:26.1]} 13. c3 {[%clk 0:02:36.8]} 13... Nxd5 {[%clk 0:02:24.3]} 14.
exd5 {[%clk 0:02:36.9]} 14... f5 {[%clk 0:02:24.5]} 15. Nc2 {[%clk 0:02:36.3]}
15... e4 {[%clk 0:02:24.7]} 16. Be2 {[%clk 0:02:36.6]} 16... f4 {[%clk 0:02:15]}
17. f3 {[%clk 0:02:09.9]} 17... e3 {[%clk 0:01:58.4]} 18. a4 {[%clk 0:02:09.3]}
18... bxa4 {[%clk 0:01:56.7]} 19. Rxa4 {[%clk 0:02:10.2]} 19... Bd7 {[%clk
0:01:48.1]} 20. Rxf4 {[%clk 0:02:08.4]} 20... Be5 {[%clk 0:01:41]} 21. Rc4
{[%clk 0:01:45]} 21... a5 {[%clk 0:01:15.8]} 22. Qd3 {[%clk 0:01:17.6]} 22...
Qb6 {[%clk 0:01:05.1]} 23. Rh4 {[%clk 0:01:05.5]} 23... f5 {[%clk 0:01:04.3]}
24. Qxe3 {[%clk 0:00:47.1]} 24... Qxb2 {[%clk 0:01:03.4]} 25. Nd4 {[%clk
0:00:44]} 25... Rae8 {[%clk 0:00:49.1]} 26. Qg5+ {[%clk 0:00:18.7]} 26... Bg7
{[%clk 0:00:46.7]} 27. Bd1 {[%clk 0:00:11.1]} 27... Qxc3 {[%clk 0:00:46.1]} 28.
Ne6 {[%clk 0:00:10.2]} 28... Bxe6 {[%clk 0:00:43.6]} 29. dxe6 {[%clk 0:00:09.8]}
29... Rxe6 {[%clk 0:00:43.6]} 30. Kh1 {[%clk 0:00:04.8]} 30... Qf6 {[%clk
0:00:41.9]} 31. Qh5 {[%clk 0:00:04.6]} 31... Qg6 {[%clk 0:00:38.2]} 32. Bb3
{[%clk 0:00:04.4]} 32... Re8 {[%clk 0:00:36.9]} 33. Qxg6 {[%clk 0:00:03.9]}
33... hxg6 {[%clk 0:00:36.1]} 34. Re1 {[%clk 0:00:03.8]} 34... Kf7 {[%clk
0:00:30.3]} 35. Rxe6 {[%clk 0:00:03.6]} 35... Rxe6 {[%clk 0:00:29.7]} 36. Rh7
{[%clk 0:00:04.1]} 36... Kg8 {[%clk 0:00:25.6]} 37. Rxg7+ {[%clk 0:00:03.4]}
37... Kxg7 {[%clk 0:00:25.9]} 38. Bxe6 {[%clk 0:00:03.8]} 38... Kf6 {[%clk
0:00:26.4]} 39. Bb3 {[%clk 0:00:03.8]} 39... Ke5 {[%clk 0:00:26.8]} 40. Kg1
{[%clk 0:00:03.9]} 40... Kd4 {[%clk 0:00:27.7]} 41. Kf2 {[%clk 0:00:04.2]} 41...
Kc3 {[%clk 0:00:28.3]} 42. Bd1 {[%clk 0:00:04.5]} 42... Kd2 {[%clk 0:00:27.8]}
43. Ba4 {[%clk 0:00:04.4]} 43... d5 {[%clk 0:00:26.1]} 44. g4 {[%clk 0:00:04.5]}
44... d4 {[%clk 0:00:25.3]} 45. h4 {[%clk 0:00:04.9]} 45... d3 {[%clk
0:00:25.2]} 46. h5 {[%clk 0:00:05.2]} 46... Kc1 {[%clk 0:00:22.1]} 47. hxg6
{[%clk 0:00:04.8]} 47... d2 {[%clk 0:00:23]} 48. g7 {[%clk 0:00:04.6]} 48...
d1=Q {[%clk 0:00:23.3]} 49. Bxd1 {[%clk 0:00:04.5]} 49... Kxd1 {[%clk
0:00:24.2]} 50. g8=Q {[%clk 0:00:05.2]} 50... a4 {[%clk 0:00:23]} 51. Qa2 {[%clk
0:00:06.1]} 51... Kc1 {[%clk 0:00:22.5]} 52. gxf5 {[%clk 0:00:06]} 1-0

[Event "*** Titled Tuesday Blitz"]
[Site "Chess.com"]
[Date "2020.04.21"]
[Round "6"]
[White "Kaua18"]
[Black "Nafania1"]
[Result "1-0"]
[WhiteElo "2219"]
[BlackElo "2352"]
[TimeControl "180+1"]
[EndTime "11:09:17 PDT"]
[Termination "Kaua18 won by resignation"]

1. e4 {[%clk 0:03:00.5]} 1... e6 {[%clk 0:02:59.9]} 2. Nf3 {[%clk 0:03:01.4]}
2... d5 {[%clk 0:02:57.9]} 3. exd5 {[%clk 0:03:02.3]} 3... exd5 {[%clk 0:02:58]}
4. d4 {[%clk 0:03:03.2]} 4... Nf6 {[%clk 0:02:52.9]} 5. Bd3 {[%clk 0:03:03.4]}
5... Be7 {[%clk 0:02:50.8]} 6. Nbd2 {[%clk 0:03:02.3]} 6... O-O {[%clk
0:02:49.7]} 7. O-O {[%clk 0:03:02.4]} 7... c5 {[%clk 0:02:49.7]} 8. dxc5 {[%clk
0:03:00.3]} 8... Bxc5 {[%clk 0:02:49.8]} 9. Nb3 {[%clk 0:03:00.4]} 9... Bb6
{[%clk 0:02:49.9]} 10. c3 {[%clk 0:03:00.3]} 10... Nc6 {[%clk 0:02:48.5]} 11.
Bg5 {[%clk 0:02:59.6]} 11... h6 {[%clk 0:02:48.4]} 12. Bh4 {[%clk 0:02:59]}
12... g5 {[%clk 0:02:48.1]} 13. Bg3 {[%clk 0:02:58.8]} 13... Ne4 {[%clk
0:02:48.3]} 14. Nfd4 {[%clk 0:02:53.4]} 14... f5 {[%clk 0:02:44.5]} 15. f3
{[%clk 0:02:45.4]} 15... Nxg3 {[%clk 0:02:40.5]} 16. hxg3 {[%clk 0:02:46.3]}
16... Qd6 {[%clk 0:02:27.3]} 17. Kh2 {[%clk 0:02:43.7]} 17... Bd7 {[%clk
0:02:22.7]} 18. a4 {[%clk 0:02:43.4]} 18... Rae8 {[%clk 0:02:21.4]} 19. Nb5
{[%clk 0:02:37.5]} 19... Qg6 {[%clk 0:02:16.9]} 20. N3d4 {[%clk 0:02:27.6]}
20... a6 {[%clk 0:02:16.5]} 21. Na3 {[%clk 0:02:00.1]} 21... Nxd4 {[%clk
0:02:13.7]} 22. cxd4 {[%clk 0:02:01]} 22... Bxd4 {[%clk 0:02:13.9]} 23. Bxf5
{[%clk 0:02:00.7]} 23... Qh5+ {[%clk 0:02:02.2]} 24. Bh3 {[%clk 0:02:00.6]}
24... Bxh3 {[%clk 0:01:55.1]} 25. Qxd4 {[%clk 0:01:57.8]} 25... Re2 {[%clk
0:01:43.2]} 26. Rf2 {[%clk 0:01:57.5]} 26... Rfe8 {[%clk 0:01:28.7]} 27. Raf1
{[%clk 0:01:40.8]} 27... Be6+ {[%clk 0:01:11.1]} 28. Kg1 {[%clk 0:01:40.4]}
28... Rxf2 {[%clk 0:01:08]} 29. Qxf2 {[%clk 0:01:41.3]} 29... Qf7 {[%clk
0:01:03.5]} 30. Nc2 {[%clk 0:01:39.8]} 30... Bf5 {[%clk 0:00:57.3]} 31. Nd4
{[%clk 0:01:38.2]} 31... Bg6 {[%clk 0:00:50.6]} 32. g4 {[%clk 0:01:38.2]} 32...
Qf4 {[%clk 0:00:48.8]} 33. a5 {[%clk 0:01:06.4]} 33... Qc7 {[%clk 0:00:47.5]}
34. Nb3 {[%clk 0:01:02.4]} 34... Qc4 {[%clk 0:00:46.9]} 35. Nd2 {[%clk
0:00:58.9]} 35... Qd3 {[%clk 0:00:45]} 36. Re1 {[%clk 0:00:56.2]} 36... Rxe1+
{[%clk 0:00:43.3]} 37. Qxe1 {[%clk 0:00:57.1]} 37... Kf7 {[%clk 0:00:43.5]} 38.
Nf1 {[%clk 0:00:56.2]} 38... Qd4+ {[%clk 0:00:43.6]} 39. Qf2 {[%clk 0:00:45.4]}
39... Qd1 {[%clk 0:00:41.2]} 40. Kh2 {[%clk 0:00:42.1]} 40... Qb3 {[%clk
0:00:39.9]} 41. Ne3 {[%clk 0:00:35.6]} 41... d4 {[%clk 0:00:39.7]} 42. Nf5
{[%clk 0:00:29.3]} 42... Bxf5 {[%clk 0:00:39.7]} 43. gxf5 {[%clk 0:00:30.2]}
43... Qd5 {[%clk 0:00:39.7]} 44. g4 {[%clk 0:00:24.4]} 44... d3 {[%clk
0:00:39.9]} 45. Qd2 {[%clk 0:00:24.4]} 45... Qd4 {[%clk 0:00:40.2]} 46. Kg2
{[%clk 0:00:23]} 46... Kf6 {[%clk 0:00:38.7]} 47. Kf1 {[%clk 0:00:21.1]} 47...
Ke5 {[%clk 0:00:38.9]} 48. Qc3 {[%clk 0:00:20.6]} 48... Qxc3 {[%clk 0:00:21.2]}
49. bxc3 {[%clk 0:00:21.5]} 49... Kf4 {[%clk 0:00:20.3]} 50. f6 {[%clk 0:00:19]}
50... Ke3 {[%clk 0:00:20.5]} 51. Ke1 {[%clk 0:00:19.3]} 1-0

[Event "*** Titled Tuesday Blitz"]
[Site "Chess.com"]
[Date "2020.04.21"]
[Round "6"]
[White "Gubajdullin"]
[Black "GM_DarwinLaylo"]
[Result "1-0"]
[WhiteElo "2451"]
[BlackElo "2575"]
[TimeControl "180+1"]
[EndTime "11:09:18 PDT"]
[Termination "Gubajdullin won on time"]

1. d4 {[%clk 0:03:00.9]} 1... Nf6 {[%clk 0:02:59.2]} 2. Bf4 {[%clk 0:03:00.2]}
2... c5 {[%clk 0:02:57.8]} 3. e3 {[%clk 0:03:00]} 3... Qb6 {[%clk 0:02:55.7]} 4.
Nc3 {[%clk 0:02:59.4]} 4... cxd4 {[%clk 0:02:55.4]} 5. exd4 {[%clk 0:02:58.5]}
5... d5 {[%clk 0:02:54]} 6. a3 {[%clk 0:02:56.4]} 6... a6 {[%clk 0:02:53.5]} 7.
Bd3 {[%clk 0:02:54.8]} 7... Nc6 {[%clk 0:02:52.7]} 8. Nge2 {[%clk 0:02:54.1]}
8... Bg4 {[%clk 0:02:49.6]} 9. f3 {[%clk 0:02:52.9]} 9... Bh5 {[%clk 0:02:49]}
10. h4 {[%clk 0:02:52.6]} 10... Bg6 {[%clk 0:02:47.4]} 11. g4 {[%clk 0:02:46.4]}
11... e6 {[%clk 0:02:37.2]} 12. h5 {[%clk 0:02:41.7]} 12... Bxd3 {[%clk
0:02:36.3]} 13. Qxd3 {[%clk 0:02:41.5]} 13... h6 {[%clk 0:02:34.5]} 14. b4
{[%clk 0:02:30.9]} 14... Qd8 {[%clk 0:02:15.3]} 15. Na4 {[%clk 0:02:03.5]} 15...
Bd6 {[%clk 0:02:05.1]} 16. Nc5 {[%clk 0:02:01.2]} 16... Bxf4 {[%clk 0:01:58.3]}
17. Nxf4 {[%clk 0:02:00.3]} 17... Qc7 {[%clk 0:01:57]} 18. Qe3 {[%clk
0:01:48.7]} 18... b6 {[%clk 0:01:37.6]} 19. Ncd3 {[%clk 0:01:45.9]} 19... O-O
{[%clk 0:01:17.5]} 20. Kf2 {[%clk 0:01:18.5]} 20... Nh7 {[%clk 0:01:11.2]} 21.
c3 {[%clk 0:01:13.4]} 21... Rae8 {[%clk 0:01:10.5]} 22. Rae1 {[%clk 0:01:10.6]}
22... Ng5 {[%clk 0:01:05.6]} 23. Nh3 {[%clk 0:01:09.7]} 23... Nxh3+ {[%clk
0:01:02.5]} 24. Rxh3 {[%clk 0:01:08.8]} 24... f6 {[%clk 0:00:58.4]} 25. Nf4
{[%clk 0:01:00.3]} 25... Nd8 {[%clk 0:00:56.4]} 26. Ng6 {[%clk 0:00:55.9]} 26...
Rf7 {[%clk 0:00:55.9]} 27. Kg2 {[%clk 0:00:54.9]} 27... Nc6 {[%clk 0:00:45.8]}
28. Qd3 {[%clk 0:00:51.7]} 28... Qd6 {[%clk 0:00:43.9]} 29. f4 {[%clk
0:00:47.7]} 29... Ne7 {[%clk 0:00:26.7]} 30. Rhe3 {[%clk 0:00:40.1]} 30... Nxg6
{[%clk 0:00:25.6]} 31. hxg6 {[%clk 0:00:39.2]} 31... Rfe7 {[%clk 0:00:25.7]} 32.
Kf3 {[%clk 0:00:18.3]} 32... b5 {[%clk 0:00:25.7]} 33. Qe2 {[%clk 0:00:17.5]}
33... Kf8 {[%clk 0:00:22.2]} 34. Qd3 {[%clk 0:00:15.7]} 34... e5 {[%clk
0:00:19.8]} 35. dxe5 {[%clk 0:00:14.3]} 35... fxe5 {[%clk 0:00:19.5]} 36. Qf5+
{[%clk 0:00:14.3]} 36... Kg8 {[%clk 0:00:15.2]} 37. Rxe5 {[%clk 0:00:14.3]}
37... Rxe5 {[%clk 0:00:10.4]} 38. Rxe5 {[%clk 0:00:13.8]} 38... Rf8 {[%clk
0:00:10.9]} 39. Re8 {[%clk 0:00:11.8]} 39... Rxe8 {[%clk 0:00:09.5]} 40. Qf7+
{[%clk 0:00:11.2]} 40... Kh8 {[%clk 0:00:08.2]} 41. Qxe8+ {[%clk 0:00:11.2]} 1-0